bitfinex-derivatives/quotes_BTCF0:USTF0_20250505
["timestamp","ask_amount","ask_price","bid_price","bid_amount"]
[1746479199205,0.2115689,94546.0,94545.0,0.06508]
[1746479199405,0.4136922,94546.0,94542.0,0.06508]
[1746479199607,0.2115745,94544.0,94542.0,0.06508]
[1746479199806,0.0329,94543.0,94542.0,0.07581539]
[1746479200006,0.0639,94543.0,94542.0,0.07581539]
[1746479200313,0.3954756,94543.0,94542.0,0.07581539]
[1746479201506,0.3954756,94543.0,94542.0,0.28739329]
[1746479202112,0.3954756,94543.0,94542.0,0.07581539]
[1746479202316,0.3954756,94543.0,94542.0,0.28739329]
[1746479202502,0.3954756,94543.0,94542.0,0.06508]
[1746479202707,0.1839,94543.0,94542.0,0.2766579]
[1746479203605,0.1839,94543.0,94542.0,0.28732782]
[1746479207013,0.3954756,94543.0,94542.0,0.07574992]
[1746479207214,0.1839,94543.0,94542.0,0.28732782]
[1746479207520,0.3954756,94543.0,94542.0,0.28732782]
[1746479207818,0.1839,94543.0,94542.0,0.28732782]
[1746479211106,0.1839,94543.0,94542.0,0.07574992]
[1746479211301,0.3954756,94543.0,94542.0,0.07574992]
[1746479214217,0.1839,94543.0,94542.0,0.07574992]
[1746479215217,0.1839,94543.0,94542.0,0.28732782]
[1746479218319,0.1839,94543.0,94542.0,0.22224782]
[1746479218520,0.3954756,94543.0,94542.0,0.07570992]
[1746479218714,0.3954756,94543.0,94542.0,0.06504]
[1746479218916,0.289672,94543.0,94500.0,0.19426382]
[1746479219222,0.5724145,94526.0,94523.0,0.0529051]
[1746479219414,0.0947,94525.0,94524.0,0.2116182]
[1746479220115,0.2147,94525.0,94524.0,0.2116182]
[1746479220617,0.2147,94525.0,94524.0,0.2435182]
[1746479220824,0.2147,94525.0,94524.0,0.2761182]
[1746479222315,0.2116182,94524.0,94523.0,0.0106123]
[1746479222515,0.2116249,94521.0,94520.0,0.01]
[1746479222812,0.0529056,94523.0,94520.0,0.01]
[1746479222813,0.2147,94525.0,94520.0,0.2216256]
[1746479223123,0.0327,94522.0,94520.0,0.01]
[1746479223322,0.0322,94521.0,94520.0,0.01]
[1746479223718,0.0649,94521.0,94520.0,0.02176649]
[1746479223917,0.0649,94521.0,94520.0,0.2876671]
[1746479224114,0.1849,94521.0,94520.0,0.2876671]
[1746479224314,0.1849,94521.0,94520.0,0.2866671]
[1746479225223,0.1849,94521.0,94520.0,0.2876671]
[1746479225727,0.1849,94521.0,94520.0,0.29845649]
[1746479232548,0.1849,94521.0,94520.0,0.02178939]
[1746479232741,0.1849,94521.0,94520.0,0.29849649]
[1746479233845,0.1849,94521.0,94520.0,0.29749649]
[1746479236641,0.1849,94521.0,94520.0,0.08586939]
[1746479236851,0.3965249,94521.0,94520.0,0.08586939]
[1746479238534,0.3965249,94521.0,94520.0,0.11886939]
[1746479238949,0.3965249,94521.0,94520.0,0.33049649]
[1746479239150,0.1849,94521.0,94520.0,0.33049649]
[1746479240743,0.1849,94521.0,94520.0,0.36199649]
[1746479240951,0.19265692,94521.0,94520.0,0.36199649]
[1746479242451,0.19265692,94521.0,94520.0,0.11886939]
[1746479242452,0.40428182,94521.0,94520.0,0.11886939]
[1746479243454,0.40428182,94521.0,94520.0,0.33049649]
[1746479243654,0.19265692,94521.0,94520.0,0.33049649]
[1746479245246,0.40428182,94521.0,94520.0,0.11886939]
[1746479245446,0.40428182,94521.0,94520.0,0.33049649]
[1746479245645,0.40428182,94521.0,94520.0,0.11886939]
[1746479246456,0.19265692,94521.0,94520.0,0.33049649]
[1746479246755,0.40428182,94521.0,94520.0,0.11886939]
[1746479247954,0.19265692,94521.0,94520.0,0.11886939]
[1746479248146,0.40428182,94521.0,94520.0,0.11886939]
[1746479248341,0.19265692,94521.0,94520.0,0.33049649]
[1746479248955,0.40428182,94521.0,94520.0,0.33049649]
[1746479250656,0.19265692,94521.0,94520.0,0.33049649]
[1746479250954,0.1849,94521.0,94520.0,0.33049649]
[1746479253657,0.1527,94521.0,94520.0,0.33049649]
[1746479255659,0.1527,94521.0,94520.0,0.32049649]
[1746479263963,0.3643249,94521.0,94520.0,0.32049649]
[1746479264560,0.1527,94521.0,94520.0,0.32049649]
[1746479265270,0.1527,94521.0,94520.0,0.25541649]
[1746479265469,0.1527,94521.0,94520.0,0.32057649]
[1746479267071,0.1828,94521.0,94520.0,0.32057649]
[1746479268868,0.1828,94521.0,94520.0,0.35147649]
[1746479269071,0.3944249,94521.0,94520.0,0.13984939]
[1746479269263,0.3944249,94521.0,94520.0,0.10894939]
[1746479269863,0.3944249,94521.0,94514.0,0.00077]
[1746479270063,0.5724383,94515.0,94514.0,0.00077]
[1746479271073,0.7873383,94515.0,94514.0,0.00277]
[1746479271875,0.7873383,94515.0,94514.0,0.00177]
[1746479273272,0.7873383,94515.0,94514.0,0.00077]
[1746479273667,0.2116473,94511.0,94510.0,0.06516]
[1746479274266,0.3316473,94511.0,94510.0,0.06516]
[1746479274467,0.3958473,94511.0,94510.0,0.06516]
[1746479274872,0.7566473,94511.0,94510.0,0.09646]
[1746479275871,0.3958473,94511.0,94510.0,0.09646]
[1746479276074,0.7566473,94511.0,94510.0,0.09646]
[1746479277374,0.7566473,94511.0,94510.0,0.0313]
[1746479277772,0.7566473,94511.0,94505.0,0.03215814]
[1746479277773,0.0529123,94510.0,94505.0,0.00105814]
[1746479277977,0.5724585,94506.0,94505.0,0.06621814]
[1746479278671,0.5724585,94506.0,94505.0,0.00105814]
[1746479279175,0.6924585,94506.0,94505.0,0.00105814]
[1746479284283,0.2116921,94491.0,94490.0,0.0317]
[1746479284478,0.5724921,94491.0,94490.0,0.0317]
[1746479284977,0.5724921,94491.0,94490.0,0.2751943]
[1746479285182,0.7574921,94491.0,94490.0,0.2751943]
[1746479286082,0.7574921,94491.0,94490.0,0.0635]
[1746479287182,0.7574921,94491.0,94490.0,0.0645]
[1746479287886,0.7574921,94491.0,94490.0,0.0635]
[1746479288087,0.7574921,94491.0,94490.0,0.0645]
[1746479292097,0.7574921,94491.0,94490.0,0.0655]
[1746479292300,0.7574921,94491.0,94490.0,0.0645]
[1746479292596,0.2117234,94477.0,94476.0,0.00073]
[1746479292789,0.5725234,94477.0,94476.0,0.09681]
[1746479292988,0.5725234,94477.0,94476.0,0.3085357]
[1746479293189,0.4808,94477.0,94476.0,0.3085357]
[1746479293487,0.4808,94477.0,94476.0,0.09681]
[1746479293795,0.6925234,94477.0,94476.0,0.1074543]
[1746479293999,0.7240234,94477.0,94476.0,0.1413543]
[1746479294199,0.7549234,94477.0,94476.0,0.1413543]
[1746479294592,0.76282249,94477.0,94476.0,0.1413543]
[1746479294790,0.76282249,94477.0,94476.0,0.13071]
[1746479294987,0.8686705,94477.0,94476.0,0.00173]
[1746479295295,0.8686705,94477.0,94476.0,0.00273]
[1746479295493,0.61814801,94477.0,94476.0,0.00273]
[1746479295696,0.82987141,94477.0,94476.0,0.06873]
[1746479296202,0.86077141,94477.0,94476.0,0.06873]
[1746479296602,0.4808,94477.0,94476.0,0.2804557]
[1746479296899,0.4808,94477.0,94476.0,0.2797257]
[1746479297988,0.6925234,94477.0,94476.0,0.2797257]
[1746479298191,0.12,94477.0,94476.0,0.2797257]
[1746479298997,0.3317234,94477.0,94476.0,0.068]
[1746479299202,0.3621234,94477.0,94476.0,0.068]
[1746479299591,0.3621234,94477.0,94476.0,0.2797257]
[1746479300002,0.1504,94477.0,94476.0,0.2797257]
[1746479300191,0.12,94477.0,94476.0,0.2797257]
[1746479301103,0.3317234,94477.0,94476.0,0.2797257]
[1746479301303,0.12,94477.0,94476.0,0.2797257]
[1746479302505,0.3317234,94477.0,94476.0,0.2797257]
[1746479302906,0.12,94477.0,94476.0,0.2797257]
[1746479329814,0.12,94477.0,94476.0,0.3448057]
[1746479339227,0.12,94477.0,94476.0,0.8448057]
[1746479340126,0.12,94477.0,94476.0,0.9506537]
[1746479340529,0.0642,94494.0,94493.0,0.2116876]
[1746479340736,0.0642,94494.0,94493.0,0.2767676]
[1746479341125,0.1842,94494.0,94493.0,0.2767676]
[1746479341326,0.1842,94494.0,94493.0,0.3380676]
[1746479342520,0.1842,94494.0,94493.0,0.3400676]
[1746479342924,0.1842,94494.0,94493.0,0.3410676]
[1746479347240,0.1842,94494.0,94493.0,0.3390676]
[1746479347536,0.1842,94494.0,94493.0,0.3400676]
[1746479348233,0.1842,94494.0,94493.0,0.3390676]
[1746479348442,0.1842,94494.0,94493.0,0.3400676]
[1746479349342,0.1842,94494.0,94493.0,0.3390676]
[1746479349541,0.1842,94494.0,94493.0,0.3410676]
[1746479350842,0.1842,94494.0,94493.0,0.3420676]
[1746479351443,0.1842,94494.0,94493.0,0.3380676]
[1746479351637,0.1842,94494.0,94493.0,0.3420676]
[1746479353142,0.1842,94494.0,94493.0,0.3410676]
[1746479354645,0.1842,94494.0,94493.0,0.3390676]
[1746479354836,0.1842,94494.0,94493.0,0.3410676]
[1746479355744,0.1842,94494.0,94493.0,0.3400676]
[1746479358037,0.1842,94494.0,94493.0,0.3097676]
[1746479358438,0.1842,94494.0,94493.0,0.3107676]
[1746479358738,0.1842,94494.0,94493.0,0.3445676]
[1746479359349,0.1842,94494.0,94493.0,0.3117676]
[1746479359551,0.1842,94494.0,94493.0,0.3097676]
[1746479359847,0.1842,94494.0,94493.0,0.3117676]
[1746479360153,0.1842,94494.0,94493.0,0.3097676]
[1746479360349,0.1842,94494.0,94493.0,0.3117676]
[1746479360951,0.1842,94494.0,94493.0,0.3107676]
[1746479361849,0.1842,94494.0,94493.0,0.3087676]
[1746479362050,0.1842,94494.0,94493.0,0.3097676]
[1746479363251,0.1842,94494.0,94493.0,0.3404676]
[1746479364148,0.12,94494.0,94493.0,0.3414676]
[1746479364348,0.0631,94506.0,94505.0,0.2116607]
[1746479364545,0.0631,94506.0,94505.0,0.2767007]
[1746479365251,0.1831,94506.0,94505.0,0.2767007]
[1746479366853,0.1831,94506.0,94505.0,0.28714591]
[1746479368844,0.1831,94506.0,94505.0,0.28914591]
[1746479369552,0.1831,94506.0,94505.0,0.29114591]
[1746479370551,0.1831,94506.0,94505.0,0.28914591]
[1746479370852,0.1831,94506.0,94505.0,0.29114591]
[1746479371249,0.1831,94506.0,94505.0,0.28914591]
[1746479371451,0.1831,94506.0,94505.0,0.29114591]
[1746479371655,0.1831,94506.0,94505.0,0.79114591]
[1746479375853,0.1504,94506.0,94505.0,0.82424591]
[1746479380449,0.1504,94506.0,94505.0,0.82524591]
[1746479381149,0.1504,94506.0,94505.0,0.85784591]
[1746479381850,0.12,94506.0,94505.0,0.85484591]
[1746479382055,0.12,94506.0,94505.0,0.85584591]
[1746479382359,0.12,94506.0,94505.0,0.85884591]
[1746479382851,0.12,94506.0,94505.0,0.86084591]
[1746479383548,0.12,94506.0,94505.0,0.85684591]
[1746479383749,0.12,94506.0,94505.0,0.85984591]
[1746479384254,0.12,94506.0,94505.0,1.22064591]
[1746479384558,0.12,94506.0,94505.0,1.21964591]
[1746479384855,0.12,94506.0,94505.0,1.21664591]
[1746479385157,0.12,94506.0,94505.0,1.21964591]
[1746479388161,0.12,94506.0,94505.0,1.22164591]
[1746479388659,0.12,94506.0,94505.0,1.15660591]
[1746479388965,0.12,94506.0,94505.0,1.22164591]
[1746479391260,0.12,94506.0,94505.0,1.21664591]
[1746479391461,0.12,94506.0,94505.0,1.21964591]
[1746479393769,0.12,94506.0,94505.0,0.85884591]
[1746479393960,0.12,94506.0,94505.0,1.21964591]
[1746479397967,0.1504,94506.0,94505.0,1.21964591]
[1746479401782,0.1813,94506.0,94505.0,1.18704591]
[1746479404883,0.1813,94506.0,94505.0,0.82624591]
[1746479405085,0.1813,94506.0,94505.0,1.18704591]
[1746479418387,0.1813,94506.0,94505.0,0.94228521]
[1746479418593,0.1813,94506.0,94505.0,1.15394591]
[1746479419895,0.1813,94506.0,94505.0,1.08890591]
[1746479420087,0.1813,94506.0,94505.0,1.15390591]
[1746479421497,0.1813,94506.0,94505.0,0.79310591]
[1746479436808,0.1813,94506.0,94505.0,0.82510591]
[1746479449913,0.12,94506.0,94505.0,0.82510591]
[1746479450109,0.0323,94518.0,94517.0,0.2116338]
[1746479450313,0.0323,94518.0,94517.0,0.2765538]
[1746479451309,0.1523,94518.0,94517.0,0.2765538]
[1746479451804,0.1523,94518.0,94517.0,0.7765538]
[1746479452003,0.1523,94518.0,94517.0,0.7785538]
[1746479452717,0.1523,94518.0,94517.0,0.7795538]
[1746479454722,0.1523,94518.0,94517.0,0.78735073]
[1746479457827,0.001,94536.0,94529.0,0.0529014]
[1746479458019,0.0315,94530.0,94529.0,0.2645084]
[1746479458221,0.0315,94530.0,94529.0,0.3294284]
[1746479458919,0.0315,94530.0,94529.0,0.8294284]
[1746479459117,0.1515,94530.0,94529.0,0.8294284]
[1746479463927,0.12,94530.0,94529.0,0.8294284]
[1746479464220,0.001,94536.0,94529.0,0.8294284]
[1746479464221,0.001,94536.0,94535.0,0.2115935]
[1746479465327,0.001,94536.0,94535.0,0.3315935]
[1746479466023,0.00158756,94545.0,94544.0,0.2115734]
[1746479466218,0.00158756,94545.0,94544.0,0.28714534]
[1746479467136,0.00158756,94545.0,94544.0,0.40714534]
[1746479468727,0.00158756,94545.0,94544.0,0.43764534]
[1746479469130,0.00158756,94545.0,94544.0,0.93764534]
[1746479469435,0.3608,94560.0,94554.0,0.211551]
[1746479470119,0.3608,94560.0,94554.0,0.331551]
[1746479470322,0.3608,94560.0,94554.0,0.362051]
[1746479470721,0.0312,94563.0,94554.0,0.722851]
[1746479471221,0.1215,94555.0,94554.0,0.602851]
[1746479471830,0.1215,94555.0,94554.0,1.102851]
[1746479475223,0.1215,94555.0,94554.0,1.072351]
[1746479476932,0.3608,94569.0,94565.0,0.2115264]
[1746479477230,0.0321,94577.0,94576.0,0.2115018]
[1746479478227,0.1521,94577.0,94576.0,0.2115018]
[1746479480731,0.12,94577.0,94576.0,0.2115018]
[1746479480936,0.12,94577.0,94576.0,0.2425018]
[1746479481828,0.12,94577.0,94576.0,0.7425018]
[1746479482030,0.12,94577.0,94576.0,0.75048294]
[1746479482230,0.12,94577.0,94576.0,0.71948294]
[1746479483138,0.12,94577.0,94576.0,0.28432294]
[1746479484642,0.12,94577.0,94576.0,0.31562294]
[1746479485328,0.12,94577.0,94576.0,0.28432294]
[1746479488257,0.12,94577.0,94576.0,0.31432294]
[1746479489048,0.12,94577.0,94576.0,0.81432294]
[1746479491853,0.12023952,94577.0,94576.0,0.81432294]
[1746479500366,0.00023952,94577.0,94576.0,0.93432294]
[1746479500966,0.00023952,94577.0,94576.0,0.93532294]
[1746479502759,0.00023952,94577.0,94576.0,0.93632294]
[1746479506268,0.12023952,94577.0,94576.0,0.81632294]
[1746479512061,0.12023952,94577.0,94576.0,0.72148294]
[1746479512259,0.12023952,94577.0,94576.0,0.57478114]
[1746479512460,0.12023952,94577.0,94576.0,0.78628294]
[1746479512856,0.12023952,94577.0,94576.0,0.28628294]
[1746479513066,0.18303952,94577.0,94576.0,0.28628294]
[1746479514270,0.18303952,94577.0,94576.0,0.22148294]
[1746479514571,0.18303952,94577.0,94576.0,0.28628294]
[1746479517570,0.18303952,94577.0,94576.0,0.07478114]
[1746479518074,0.18303952,94577.0,94576.0,0.28628294]
[1746479518765,0.18303952,94577.0,94576.0,0.07478114]
[1746479518965,0.39453912,94577.0,94576.0,0.0668]
[1746479519975,0.18303952,94577.0,94576.0,0.0668]
[1746479520364,0.18303952,94577.0,94576.0,0.2783018]
[1746479520768,0.18303952,94577.0,94576.0,0.2773018]
[1746479521772,0.18303952,94577.0,94576.0,0.2763018]
[1746479525480,0.18303952,94577.0,94576.0,0.0648]
[1746479525686,0.39453912,94577.0,94576.0,0.0648]
[1746479532189,0.18303952,94577.0,94576.0,0.0648]
[1746479532486,0.39453912,94577.0,94576.0,0.0648]
[1746479536894,0.39453912,94577.0,94576.0,0.2763018]
[1746479537692,0.39453912,94577.0,94576.0,0.0648]
[1746479538291,0.39453912,94577.0,94576.0,0.2763018]
[1746479539401,0.39453912,94577.0,94576.0,0.0648]
[1746479540192,0.18303952,94577.0,94576.0,0.0648]
[1746479540396,0.39453912,94577.0,94576.0,0.0648]
[1746479540792,0.18303952,94577.0,94576.0,0.0648]
[1746479541089,0.39453912,94577.0,94576.0,0.0648]
[1746479541291,0.18303952,94577.0,94576.0,0.0648]
[1746479541999,0.18303952,94577.0,94576.0,0.2763018]
[1746479542493,0.18303952,94577.0,94576.0,0.3093018]
[1746479542694,0.18303952,94577.0,94576.0,0.3401018]
[1746479543404,0.15133952,94577.0,94576.0,0.3401018]
[1746479543800,0.15133952,94577.0,94576.0,0.2753018]
[1746479551012,0.15133952,94577.0,94576.0,0.2763018]
[1746479551916,0.15133952,94577.0,94576.0,0.2773018]
[1746479554816,0.15133952,94577.0,94576.0,0.0658]
[1746479555012,0.15133952,94577.0,94576.0,0.2773018]
[1746479555214,0.15133952,94577.0,94576.0,0.002]
[1746479555718,0.36283912,94577.0,94576.0,0.002]
[1746479555921,0.39453912,94577.0,94576.0,0.002]
[1746479556409,0.18303952,94577.0,94576.0,0.2135018]
[1746479556610,0.18303952,94577.0,94576.0,0.2458018]
[1746479559122,0.18303952,94577.0,94576.0,0.2788018]
[1746479562127,0.15133952,94577.0,94576.0,0.2788018]
[1746479562517,0.15133952,94577.0,94576.0,0.3094018]
[1746479563022,0.12023952,94577.0,94576.0,0.3094018]
[1746479567523,0.12,94577.0,94576.0,0.3094018]
[1746479569923,0.12023952,94577.0,94576.0,0.3094018]
[1746479572926,0.12023952,94577.0,94576.0,0.2788018]
[1746479573824,0.15143952,94577.0,94576.0,0.2788018]
[1746479577234,0.15143952,94577.0,94576.0,0.2458018]
[1746479580235,0.18323952,94577.0,94576.0,0.2458018]
[1746479582728,0.18323952,94577.0,94576.0,0.2761018]
[1746479584333,0.39473912,94577.0,94576.0,0.0646]
[1746479584728,0.39473912,94577.0,94576.0,0.0343]
[1746479585842,0.39473912,94577.0,94576.0,0.002]
[1746479586236,0.39473912,94577.0,94576.0,0.2135018]
[1746479586440,0.18323952,94577.0,94576.0,0.2135018]
[1746479587325,0.18323952,94577.0,94576.0,0.2125018]
[1746479587531,0.18323952,94577.0,94576.0,0.2135018]
[1746479589939,0.18323952,94577.0,94576.0,0.2460018]
[1746479591042,0.18323952,94577.0,94576.0,0.2450018]
[1746479591242,0.18323952,94577.0,94576.0,0.2460018]
[1746479604152,0.18323952,94577.0,94576.0,0.0345]
[1746479604351,0.18323952,94577.0,94576.0,0.2460018]
[1746479607958,0.39473912,94577.0,94576.0,0.2460018]
[1746479609055,0.18323952,94577.0,94576.0,0.2460018]
[1746479609458,0.39473912,94577.0,94576.0,0.2460018]
[1746479609652,0.18323952,94577.0,94576.0,0.2460018]
[1746479614255,0.39473912,94577.0,94576.0,0.2460018]
[1746479615160,0.18323952,94577.0,94576.0,0.2460018]
[1746479616458,0.39473912,94577.0,94576.0,0.2460018]
[1746479617659,0.18323952,94577.0,94576.0,0.2460018]
[1746479618261,0.39473912,94577.0,94576.0,0.2460018]
[1746479618860,0.18323952,94577.0,94576.0,0.2460018]
[1746479619862,0.18323952,94577.0,94576.0,0.3106018]
[1746479620561,0.39473912,94577.0,94576.0,0.3106018]
[1746479621660,0.12023952,94577.0,94576.0,0.3106018]
[1746479621855,0.12023952,94577.0,94576.0,0.3421018]
[1746479622049,0.12023952,94577.0,94576.0,0.4478378]
[1746479622250,0.04171621,94581.0,94580.0,0.2114929]
[1746479622559,0.0015,94590.0,94589.0,0.2114727]
[1746479622758,0.0015,94590.0,94589.0,0.2760727]
[1746479623155,0.1215,94590.0,94589.0,0.2760727]
[1746479623449,0.1215,94590.0,94589.0,0.3398727]
[1746479625367,0.02370835,94594.0,94593.0,0.2114638]
[1746479625557,0.3608,94616.0,94593.0,0.2114638]
[1746479625558,0.17752648,94603.0,94602.0,0.2114437]
[1746479625863,0.17752648,94603.0,94602.0,0.6468437]
[1746479626061,0.17752648,94603.0,94602.0,0.75254769]
[1746479626263,0.09347392,94614.0,94613.0,0.2114191]
[1746479626462,0.08560392,94614.0,94613.0,0.5722191]
[1746479626655,0.08560392,94614.0,94613.0,0.6779111]
[1746479626857,0.08560392,94614.0,94613.0,0.7110111]
[1746479627259,2e-08,94614.0,94613.0,1.2410111]
[1746479627465,2e-08,94614.0,94613.0,1.0210111]
[1746479627967,2e-08,94614.0,94613.0,1.2710111]
[1746479628156,0.12000002,94614.0,94613.0,1.2756111]
[1746479628465,0.12000002,94614.0,94613.0,1.2856111]
[1746479628665,0.12000002,94614.0,94613.0,1.2756111]
[1746479629467,0.12000002,94614.0,94613.0,1.2856111]
[1746479629661,0.12,94614.0,94613.0,1.2756111]
[1746479630165,0.12,94614.0,94613.0,1.1053191]
[1746479630356,0.12,94614.0,94613.0,1.1699191]
[1746479632766,0.12,94614.0,94613.0,1.3256111]
[1746479632973,0.12,94614.0,94613.0,1.2756111]
[1746479633869,0.12,94614.0,94613.0,1.2856111]
[1746479634073,0.12,94614.0,94613.0,1.2756111]
[1746479635472,0.12,94614.0,94613.0,1.1699191]
[1746479639078,0.12,94614.0,94613.0,1.1799191]
[1746479640373,0.12,94614.0,94613.0,1.1699191]
[1746479644079,0.12,94614.0,94613.0,1.0722191]
[1746479644379,0.12,94614.0,94613.0,1.1368191]
[1746479644981,0.12,94614.0,94613.0,0.5]
[1746479645176,0.3314169,94614.0,94613.0,0.0646]
[1746479645978,0.4286169,94614.0,94613.0,0.0646]
[1746479649189,0.4286169,94614.0,94613.0,0.2760191]
[1746479649375,0.2172,94614.0,94613.0,0.2760191]
[1746479651789,0.4286169,94614.0,94613.0,0.2760191]
[1746479651989,0.2172,94614.0,94613.0,0.2760191]
[1746479652192,0.4286169,94614.0,94613.0,0.2760191]
[1746479652790,0.2172,94614.0,94613.0,0.2760191]
[1746479653097,0.4286169,94614.0,94613.0,0.0646]
[1746479653289,0.4286169,94614.0,94613.0,0.2760191]
[1746479653596,0.4286169,94614.0,94613.0,0.0646]
[1746479656289,0.4286169,94614.0,94613.0,0.2760191]
[1746479657195,0.4286169,94614.0,94613.0,0.0646]
[1746479658384,0.4286169,94614.0,94613.0,0.2760191]
[1746479658692,0.4286169,94614.0,94613.0,0.0646]
[1746479663100,0.4286169,94614.0,94613.0,0.2760191]
[1746479663397,0.4286169,94614.0,94613.0,0.0646]
[1746479663997,0.12,94614.0,94613.0,0.8868191]
[1746479664295,0.0327,94632.0,94631.0,0.2113789]
[1746479664499,0.0327,94632.0,94631.0,0.2758989]
[1746479664798,0.3608,94637.0,94636.0,0.2113677]
[1746479665203,0.4808,94637.0,94636.0,0.2113677]
[1746479665798,0.4808,94637.0,94636.0,0.28690507]
[1746479665989,0.4808,94637.0,94636.0,0.79501943]
[1746479669688,0.6921655,94637.0,94636.0,0.57553737]
[1746479669888,0.4808,94637.0,94636.0,0.78690507]
[1746479670303,0.6921655,94637.0,94636.0,0.78690507]
[1746479670501,0.7236655,94637.0,94636.0,0.07553737]
[1746479670703,0.7557655,94637.0,94636.0,0.07553737]
[1746479671099,0.7557655,94637.0,94636.0,0.0317]
[1746479671403,0.2113741,94634.0,94633.0,0.2113738]
[1746479671901,0.2438741,94634.0,94633.0,0.2113738]
[1746479672103,0.3638741,94634.0,94633.0,0.2445738]
[1746479672605,0.3638741,94634.0,94633.0,0.25522381]
[1746479672797,0.1525,94634.0,94633.0,0.25522381]
[1746479673291,0.1525,94634.0,94633.0,0.31974381]
[1746479675605,0.3638722,94634.0,94633.0,0.31974381]
[1746479676103,0.1525,94634.0,94633.0,0.31974381]
[1746479682209,0.3638722,94634.0,94633.0,0.10837001]
[1746479682409,0.3638722,94634.0,94633.0,0.31974441]
[1746479682603,0.1525,94634.0,94633.0,0.35144441]
[1746479683109,0.3638722,94634.0,94633.0,0.35144441]
[1746479683299,0.3961722,94634.0,94633.0,0.35144441]
[1746479684110,0.1848,94634.0,94633.0,0.35144441]
[1746479684308,0.3961722,94634.0,94633.0,0.14007001]
[1746479684508,0.3961722,94634.0,94633.0,0.35144441]
[1746479684710,0.0528444,94632.0,94604.0,0.3608]
[1746479684906,0.5721907,94626.0,94625.0,0.2113923]
[1746479685106,0.4808,94626.0,94625.0,0.2758723]
[1746479685502,0.12,94626.0,94625.0,0.3090723]
[1746479685698,0.1501,94626.0,94625.0,0.3090723]
[1746479685905,0.1501,94626.0,94625.0,0.31707962]
[1746479686303,0.1501,94626.0,94625.0,0.34777962]
[1746479694819,0.1501,94626.0,94625.0,0.31707962]
[1746479697723,0.3614901,94626.0,94625.0,0.31707962]
[1746479698113,0.1501,94626.0,94625.0,0.10568732]
[1746479698316,0.1501,94626.0,94625.0,0.31707962]
[1746479703722,0.12,94626.0,94625.0,0.31707962]
[1746479704115,0.12,94626.0,94625.0,0.35017962]
[1746479705427,0.12,94626.0,94625.0,0.85017962]
[1746479712329,0.12,94626.0,94625.0,0.81707962]
[1746479714730,0.3313901,94626.0,94625.0,0.81707962]
[1746479714932,0.12,94626.0,94625.0,0.81707962]
[1746479717827,0.3313901,94626.0,94625.0,0.81707962]
[1746479718033,0.6921901,94626.0,94625.0,0.56448]
[1746479718728,0.6921901,94626.0,94625.0,0.06448]
[1746479719525,0.6921901,94626.0,94625.0,0.2758723]
[1746479719825,0.6921901,94626.0,94625.0,0.06448]
[1746479720732,0.6921901,94626.0,94614.0,0.0528539]
[1746479720733,0.4808,94626.0,94614.0,0.2642624]
[1746479720938,0.5722108,94617.0,94616.0,0.2114124]
[1746479721137,0.6922108,94617.0,94616.0,0.2114124]
[1746479721528,0.6922108,94617.0,94615.0,0.06448]
[1746479721529,0.2114124,94616.0,94615.0,0.06448]
[1746479721735,0.2114303,94609.0,94608.0,0.2114284]
[1746479721934,0.2104303,94609.0,94608.0,0.3059084]
[1746479722241,0.0649,94610.0,94609.0,0.211428]
[1746479722626,0.0649,94610.0,94609.0,0.241428]
[1746479723031,0.2763258,94610.0,94609.0,0.24918823]
[1746479723230,0.1849,94610.0,94609.0,0.24918823]
[1746479723836,0.3963258,94610.0,94609.0,0.24918823]
[1746479724240,0.3963258,94610.0,94609.0,0.25118823]
[1746479724642,0.3963258,94610.0,94609.0,0.03976023]
[1746479724842,0.3963258,94610.0,94609.0,0.00976023]
[1746479725143,0.3963258,94610.0,94609.0,0.01076023]
[1746479725539,0.3963258,94610.0,94609.0,0.003]
[1746479730633,0.3963258,94610.0,94609.0,0.214428]
[1746479731239,0.3963258,94610.0,94609.0,0.246428]
[1746479731641,0.1849,94610.0,94609.0,0.246428]
[1746479731841,0.3963258,94610.0,94609.0,0.246428]
[1746479735845,0.1849,94610.0,94609.0,0.276728]
[1746479736450,0.3963258,94610.0,94609.0,0.276728]
[1746479743055,0.3963258,94610.0,94609.0,0.341168]
[1746479743255,0.3963258,94610.0,94609.0,0.276728]
[1746479743442,0.3963258,94610.0,94609.0,0.341168]
[1746479746764,0.3963258,94610.0,94609.0,0.035]
[1746479746966,0.3963258,94610.0,94609.0,0.09944]
[1746479748555,0.3963258,94610.0,94609.0,0.310868]
[1746479750463,0.3963258,94610.0,94609.0,0.06744]
[1746479750655,0.3963258,94610.0,94609.0,0.278868]
[1746479753355,0.3963258,94610.0,94609.0,0.06744]
[1746479755165,0.3963258,94610.0,94609.0,0.278868]
[1746479757560,0.3963258,94610.0,94609.0,0.06744]
[1746479759062,0.3963258,94610.0,94609.0,0.10054]
[1746479762376,0.1517,94610.0,94609.0,0.311968]
[1746479762579,0.12,94610.0,94609.0,0.311968]
[1746479763176,0.3314258,94610.0,94609.0,0.311968]
[1746479764783,0.12,94610.0,94609.0,0.311968]
[1746479769674,0.3314258,94610.0,94609.0,0.247528]
[1746479769875,0.3314258,94610.0,94609.0,0.311968]
[1746479774486,0.12,94610.0,94609.0,0.311968]
[1746479777184,0.1512,94610.0,94609.0,0.311968]
[1746479777791,0.3626258,94610.0,94609.0,0.311968]
[1746479779784,0.1512,94610.0,94609.0,0.311968]
[1746479779985,0.3626258,94610.0,94609.0,0.311968]
[1746479782893,0.3626258,94610.0,94609.0,0.247528]
[1746479783091,0.3626258,94610.0,94609.0,0.311968]
[1746479788289,0.3626258,94610.0,94609.0,0.309968]
[1746479788691,0.1512,94610.0,94609.0,0.342268]
[1746479789397,0.3626258,94610.0,94609.0,0.342268]
[1746479792490,0.3931258,94610.0,94609.0,0.342268]
[1746479794302,0.12,94610.0,94609.0,0.342268]
[1746479794493,0.12,94610.0,94609.0,0.382268]
[1746479794691,0.12,94610.0,94609.0,0.842268]
[1746479799292,0.12,94610.0,94609.0,0.862268]
[1746479799496,0.12,94610.0,94609.0,0.842268]
[1746479800304,0.12,94614.0,94613.0,0.2114191]
[1746479800898,0.12,94614.0,94613.0,0.2743191]
[1746479802198,0.12,94614.0,94613.0,0.7743191]
[1746479806110,0.152,94614.0,94613.0,0.7743191]
[1746479810710,0.152,94614.0,94613.0,0.7896982]
[1746479811710,0.152,94614.0,94613.0,0.7743191]